[Event "10th Iberoamericano-ch 2024"]
[Site "Linares"]
[Date "2024.09.30"]
[Round "8.25"]
[White "Fernandez Sanchez, Fernando Miguel"]
[Black "Giron, Jorge Ernesto"]
[Result "1/2-1/2"]
[ECO "A14"]
[WhiteElo "2399"]
[BlackElo "2276"]
[Annotator "RC"]
[PlyCount "57"]
[EventDate "2024.09.25"]
[EventType "swiss"]
[EventCountry "ESP"]
[SourceTitle "playchess.com"]
[Source "ChessBase"]
[SourceQuality "1"]
[TimeControl "5400+30"]

1. c4 {[%emt 0:03:29]} e6 {[%emt 0:00:35]} 2. g3 {[%emt 0:00:06]} d5 {[%emt 0:00:22]} 3. Bg2 {[%emt 0:00:02]} Nf6 {[%emt 0:00:05]} 4. Nf3 {[%emt 0:00:04]} Be7 {[%emt 0:00:03]} 5. O-O {[%emt 0:00:07]} O-O {[%emt 0:00:02]} 6. b3 {[%emt 0:00:12]} d4 {[%emt 0:04:25]} 7. e3 {[%emt 0:00:15]} c5 {[%emt 0:02:19]} 8. Ne5 {[%emt 0:00:14]} Nfd7 {[%emt 0:00:27]} 9. exd4 {[%emt 0:08:06]} cxd4 {[%emt 0:00:03]} 10. Nxd7 {[%emt 0:06:09]} Nxd7 {[%emt 0:01:36]} 11. d3 {[%emt 0:00:20]} Rb8 {[%emt 0:21:17]} 12. Na3 {[%emt 0:04:11]} e5 {[%emt 0:05:26]} 13. Re1 {[%emt 0:25:01]} Bb4 {[%emt 0:03:13]} 14. Re2 {[%emt 0:00:31]} Re8 {[%emt 0:00:27]} 15. Nc2 {[%emt 0:02:10]} Bc3 {[%emt 0:00:10]} 16. Rb1 {[%emt 0:00:04]} Nf6 {[%emt 0:02:05]} 17. Ne1 {[%emt 0:08:42]} b5 {[%emt 0:04:02]} 18. f4 {[%emt 0:03:23]} e4 {[%emt 0:01:01]} 19. dxe4 {[%emt 0:13:23]} bxc4 {[%emt 0:00:09]} 20. Bd2 {[%emt 0:05:33]} Bg4 {[%emt 0:02:18]} 21. Bxc3 {[%emt 0:01:41]} Bxe2 {[%emt 0:00:07]} 22. Qxd4 {[%emt 0:00:38]} Qxd4+ {[%emt 0:03:47]} 23. Bxd4 {[%emt 0:00:02]} Nxe4 {[%emt 0:00:52]} 24. Be5 {[%emt 0:03:55]} f5 {[%emt 0:16:58]} 25. Bxb8 {[%emt 0:03:46]} Rxb8 {[%emt 0:00:05]} 26. Bxe4 {[%emt 0:02:06]} fxe4 {[%emt 0:00:05]} 27. Kf2 {[%emt 0:00:11]} Bd3 {[%emt 0:01:10]} 28. Nxd3 {[%emt 0:02:55]} exd3 {[%emt 0:00:05]} 29. Ke3 {[%emt 0:01:06]} 1/2-1/2

[Event "10th Iberoamericano-ch 2024"]
[Site "Linares"]
[Date "2024.09.30"]
[Round "8.26"]
[White "Ynojosa Aponte, Felix Jose"]
[Black "Vehi Bach, Victor Manuel"]
[Result "1-0"]
[ECO "C00"]
[WhiteElo "2398"]
[BlackElo "2191"]
[Annotator "RC"]
[PlyCount "155"]
[EventDate "2024.09.25"]
[EventType "swiss"]
[EventCountry "ESP"]
[SourceTitle "playchess.com"]
[Source "ChessBase"]
[SourceQuality "1"]
[TimeControl "5400+30"]

1. c4 {[%emt 0:06:52]} e6 {[%emt 0:00:38]} 2. e4 {[%emt 0:00:11]} c5 {[%emt 0:01:19]} 3. Nc3 {[%emt 0:00:11]} Nc6 {[%emt 0:02:50]} 4. f4 {[%emt 0:00:05]} d6 {[%emt 0:07:21]} 5. Nf3 {[%emt 0:00:04]} Nf6 {[%emt 0:00:32]} 6. d3 {[%emt 0:00:05]} Be7 {[%emt 0:01:11]} 7. Rg1 {[%emt 0:00:18]} h5 {[%emt 0:06:16]} 8. h3 {[%emt 0:00:27]} h4 {[%emt 0:01:43]} 9. Be2 {[%emt 0:02:28]} a6 {[%emt 0:13:07]} 10. Ng5 {[%emt 0:06:56]} g6 {[%emt 0:08:35]} 11. Bf3 {[%emt 0:03:53]} Nh5 {[%emt 0:09:54]} 12. Be3 {[%emt 0:02:21]} Nd4 {[%emt 0:18:19]} 13. Qd2 {[%emt 0:00:27]} Rb8 {[%emt 0:02:30]} 14. Bxh5 {[%emt 0:03:06]} Rxh5 {[%emt 0:00:07]} 15. Qf2 {[%emt 0:00:38]} b5 {[%emt 0:03:22]} 16. cxb5 {[%emt 0:01:34]} axb5 {[%emt 0:01:45]} 17. Bxd4 {[%emt 0:01:38]} cxd4 {[%emt 0:00:02]} 18. Qxd4 {[%emt 0:00:34]} b4 {[%emt 0:02:02]} 19. Nd1 {[%emt 0:01:57]} e5 {[%emt 0:05:22]} 20. Qc4 {[%emt 0:03:03]} Bxg5 {[%emt 0:00:22]} 21. fxg5 {[%emt 0:00:02]} Qb6 {[%emt 0:01:09]} 22. Rf1 {[%emt 0:00:46]} Be6 {[%emt 0:00:14]} 23. Qc1 {[%emt 0:00:04]} Ra8 {[%emt 0:08:09]} 24. a3 {[%emt 0:00:56]} bxa3 {[%emt 0:00:08]} 25. Rxa3 {[%emt 0:00:15]} Rxa3 {[%emt 0:00:37]} 26. bxa3 {[%emt 0:00:02]} Qc5 {[%emt 0:03:24]} 27. Nc3 {[%emt 0:05:07]} Kf8 {[%emt 0:00:54]} 28. Ke2 {[%emt 0:01:04]} Kg7 {[%emt 0:00:06]} 29. a4 {[%emt 0:00:15]} Qb4 {[%emt 0:00:46]} 30. Nb5 {[%emt 0:03:15]} Qxa4 31. Nxd6 {[%emt 0:01:19]} Qa2+ {[%emt 0:00:29]} 32. Kf3 {[%emt 0:00:29]} Qb3 {[%emt 0:01:36]} 33. Qe3 {[%emt 0:05:06]} Qb8 {[%emt 0:00:14]} 34. Nc4 {[%emt 0:02:00]} Qd8 {[%emt 0:01:10]} 35. Nxe5 {[%emt 0:01:33]} Rxg5 {[%emt 0:00:01]} 36. Ng4 {[%emt 0:00:09]} f5 {[%emt 0:01:23]} 37. exf5 {[%emt 0:01:52]} Rxf5+ {[%emt 0:00:17]} 38. Ke2 {[%emt 0:00:04]} Rxf1 {[%emt 0:00:28]} 39. Kxf1 {[%emt 0:01:28]} Bxg4 {[%emt 0:00:07]} 40. hxg4 {[%emt 0:00:05]} Qf6+ {[%emt 0:00:44]} 41. Ke2 {[%emt 0:00:29]} Qb2+ {[%emt 0:00:41]} 42. Kf3 {[%emt 0:00:13]} Qf6+ {[%emt 0:00:08]} 43. Qf4 {[%emt 0:00:18]} Qc6+ {[%emt 0:00:01]} 44. Qe4 {[%emt 0:00:09]} Qf6+ {[%emt 0:00:20]} 45. Ke3 {[%emt 0:00:14]} Qf1 {[%emt 0:00:15]} 46. Qe7+ {[%emt 0:01:06]} Kg8 {[%emt 0:00:23]} 47. Qxh4 {[%emt 0:01:23]} Qxg2 {[%emt 0:00:25]} 48. Qd8+ {[%emt 0:00:26]} Kg7 {[%emt 0:00:08]} 49. Qe7+ {[%emt 0:00:17]} Kg8 {[%emt 0:01:41]} 50. Qe6+ {[%emt 0:00:07]} Kg7 {[%emt 0:00:02]} 51. Qe5+ {[%emt 0:01:24]} Kh6 {[%emt 0:01:24]} 52. Qf4+ {[%emt 0:00:57]} Kg7 {[%emt 0:00:01]} 53. d4 {[%emt 0:01:54]} Qg1+ {[%emt 0:00:14]} 54. Kd2 {[%emt 0:00:19]} Qg2+ {[%emt 0:00:17]} 55. Kd3 {[%emt 0:00:08]} Qa2 {[%emt 0:00:46]} 56. Qc7+ {[%emt 0:01:55]} Kh6 {[%emt 0:00:15]} 57. Qc1+ {[%emt 0:00:07]} Kg7 {[%emt 0:00:09]} 58. g5 {[%emt 0:01:12]} Qb3+ {[%emt 0:00:47]} 59. Kd2 {[%emt 0:02:40]} Qg3 {[%emt 0:01:25]} 60. Qc5 {[%emt 0:00:16]} Qf2+ {[%emt 0:00:26]} 61. Kc3 {[%emt 0:00:15]} Qe1+ {[%emt 0:00:50]} 62. Kc4 {[%emt 0:00:17]} Qe2+ {[%emt 0:00:13]} 63. Kb4 {[%emt 0:00:38]} Qb2+ {[%emt 0:00:48]} 64. Ka5 {[%emt 0:00:07]} Qa2+ {[%emt 0:00:30]} 65. Kb6 {[%emt 0:00:06]} Qb3+ {[%emt 0:00:17]} 66. Kc7 {[%emt 0:00:34]} Qf7+ {[%emt 0:01:04]} 67. Kd8 {[%emt 0:00:09]} Qg8+ {[%emt 0:00:36]} 68. Kd7 {[%emt 0:00:04]} Qb3 {[%emt 0:00:20]} 69. d5 {[%emt 0:01:30]} Qb7+ {[%emt 0:00:17]} 70. Kd6 {[%emt 0:00:53]} Kf8 {[%emt 0:01:00]} 71. Ke6+ {[%emt 0:06:47]} Kg8 {[%emt 0:00:05]} 72. d6 {[%emt 0:02:38]} Qf7+ {[%emt 0:00:16]} 73. Ke5 {[%emt 0:00:02]} Qf5+ {[%emt 0:00:47]} 74. Kd4 {[%emt 0:00:03]} Qf2+ {[%emt 0:00:44]} 75. Kc4 {[%emt 0:00:04]} Qe2+ {[%emt 0:00:20]} 76. Kb4 {[%emt 0:00:02]} Qd2+ {[%emt 0:00:38]} 77. Kb5 {[%emt 0:00:05]} Qb2+ {[%emt 0:00:30]} 78. Kc6 {[%emt 0:00:07]} 1-0

[Event "10th Iberoamericano-ch 2024"]
[Site "Linares"]
[Date "2024.09.30"]
[Round "8.27"]
[White "Cesar Maestre, Bernardo"]
[Black "Maldonado Mena, German"]
[Result "1-0"]
[ECO "B30"]
[WhiteElo "2369"]
[BlackElo "2123"]
[Annotator "RC"]
[PlyCount "51"]
[EventDate "2024.09.25"]
[EventType "swiss"]
[EventCountry "ESP"]
[SourceTitle "playchess.com"]
[Source "ChessBase"]
[SourceQuality "1"]
[TimeControl "5400+30"]

1. e4 {[%emt 0:01:05]} c5 {[%emt 0:00:29]} 2. Nf3 {[%emt 0:00:08]} Nc6 {[%emt 0:02:51]} 3. Bb5 {[%emt 0:00:09]} e6 {[%emt 0:00:20]} 4. O-O {[%emt 0:00:14]} Nge7 {[%emt 0:00:04]} 5. Re1 {[%emt 0:00:10]} g6 {[%emt 0:01:41]} 6. c3 {[%emt 0:01:08]} Bg7 {[%emt 0:00:38]} 7. d4 {[%emt 0:08:02]} cxd4 {[%emt 0:00:56]} 8. cxd4 {[%emt 0:00:07]} Qb6 {[%emt 0:00:52]} 9. Bxc6 {[%emt 0:00:19]} Nxc6 {[%emt 0:06:29]} 10. d5 {[%emt 0:02:21]} Bxb2 {[%emt 0:04:40]} 11. Bxb2 {[%emt 0:01:02]} Qxb2 {[%emt 0:00:04]} 12. Nbd2 {[%emt 0:00:13]} Na5 {[%emt 0:00:25]} 13. Rb1 {[%emt 0:13:31]} Qg7 {[%emt 0:02:41]} 14. e5 {[%emt 0:22:58]} O-O {[%emt 0:01:37]} 15. Ne4 {[%emt 0:00:31]} h6 {[%emt 0:04:52]} 16. Nf6+ {[%emt 0:12:25]} Kh8 {[%emt 0:00:07]} 17. d6 {[%emt 0:01:08]} Nc6 {[%emt 0:02:46]} 18. Qe2 {[%emt 0:01:19]} b6 {[%emt 0:01:49]} 19. Rec1 {[%emt 0:05:31]} Rd8 {[%emt 0:01:03]} 20. Qe3 {[%emt 0:01:39]} Ba6 {[%emt 0:07:49]} 21. Ng5 {[%emt 0:00:45]} Rf8 {[%emt 0:03:31]} 22. Rc3 {[%emt 0:00:56]} Rad8 {[%emt 0:04:18]} 23. Qf4 {[%emt 0:00:27]} Be2 {[%emt 0:01:33]} 24. Rh3 {[%emt 0:01:50]} Bh5 {[%emt 0:00:12]} 25. g4 {[%emt 0:01:46]} hxg5 {[%emt 0:00:37]} 26. Qxg5 {[%emt 0:00:13]} 1-0

[Event "10th Iberoamericano-ch 2024"]
[Site "Linares"]
[Date "2024.09.30"]
[Round "8.28"]
[White "Garcia, Jhoel"]
[Black "Guillo Longares, Cecilia"]
[Result "1-0"]
[ECO "B50"]
[WhiteElo "2360"]
[BlackElo "2036"]
[Annotator "RC"]
[PlyCount "115"]
[EventDate "2024.09.25"]
[EventType "swiss"]
[EventCountry "ESP"]
[SourceTitle "playchess.com"]
[Source "ChessBase"]
[SourceQuality "1"]
[TimeControl "5400+30"]

1. e4 {[%emt 0:03:18]} c5 {[%emt 0:00:07]} 2. Nf3 {[%emt 0:00:15]} d6 {[%emt 0:00:13]} 3. b3 {[%emt 0:00:35]} Nf6 {[%emt 0:00:47]} 4. Nc3 {[%emt 0:00:24]} g6 {[%emt 0:00:14]} 5. Bb5+ {[%emt 0:08:54]} Bd7 {[%emt 0:02:31]} 6. Qe2 {[%emt 0:02:14]} Bg7 {[%emt 0:09:07]} 7. e5 {[%emt 0:04:08]} dxe5 {[%emt 0:04:27]} 8. Nxe5 {[%emt 0:00:31]} O-O {[%emt 0:00:47]} 9. Nxd7 {[%emt 0:00:26]} Nbxd7 {[%emt 0:00:25]} 10. O-O {[%emt 0:00:26]} a6 {[%emt 0:02:09]} 11. Bd3 {[%emt 0:00:41]} Nb8 {[%emt 0:04:16]} 12. Ba3 {[%emt 0:03:00]} Qd6 {[%emt 0:03:32]} 13. Rae1 {[%emt 0:09:10]} Nc6 {[%emt 0:01:27]} 14. Ne4 {[%emt 0:02:38]} Nxe4 {[%emt 0:00:12]} 15. Bxe4 {[%emt 0:00:05]} e5 {[%emt 0:21:11]} 16. Qc4 {[%emt 0:08:30]} b6 {[%emt 0:02:42]} 17. b4 {[%emt 0:02:45]} b5 {[%emt 0:07:07]} 18. Qxc5 {[%emt 0:06:14]} Qxc5 {[%emt 0:00:23]} 19. bxc5 {[%emt 0:00:05]} Rac8 {[%emt 0:00:05]} 20. f4 {[%emt 0:19:49]} Rfd8 {[%emt 0:09:03]} 21. fxe5 {[%emt 0:10:09]} Rxd2 {[%emt 0:01:04]} 22. Rd1 {[%emt 0:01:31]} Rxd1 {[%emt 0:07:23]} 23. Rxd1 {[%emt 0:00:04]} Bxe5 {[%emt 0:00:16]} 24. Rd7 {[%emt 0:01:08]} b4 {[%emt 0:08:00]} 25. Bxc6 {[%emt 0:01:07]} bxa3 {[%emt 0:00:17]} 26. Bd5 {[%emt 0:00:58]} Rxc5 {[%emt 0:03:28]} 27. Bxf7+ {[%emt 0:00:11]} Kf8 {[%emt 0:00:21]} 28. Bb3 {[%emt 0:00:21]} Rc7 {[%emt 0:00:15]} 29. Rd5 {[%emt 0:00:25]} Bc3 {[%emt 0:00:41]} 30. Kf2 {[%emt 0:00:31]} Ke7 {[%emt 0:01:32]} 31. Ke2 {[%emt 0:01:19]} a5 {[%emt 0:03:23]} 32. Kd3 {[%emt 0:02:01]} Bb4 {[%emt 0:01:01]} 33. Ba4 {[%emt 0:03:01]} Ke6 {[%emt 0:01:24]} 34. c4 {[%emt 0:00:49]} Rf7 {[%emt 0:02:29]} 35. Ke2 {[%emt 0:03:42]} Rf4 {[%emt 0:02:25]} 36. Bb5 {[%emt 0:02:49]} Re4+ {[%emt 0:01:20]} 37. Kf2 {[%emt 0:01:31]} Re1 {[%emt 0:00:18]} 38. Rd3 {[%emt 0:02:26]} Ra1 {[%emt 0:02:04]} 39. Re3+ {[%emt 0:00:30]} Kd6 {[%emt 0:00:18]} 40. Re2 {[%emt 0:00:20]} Bc3 {[%emt 0:00:56]} 41. Rc2 {[%emt 0:00:53]} Bd4+ {[%emt 0:00:16]} 42. Ke2 {[%emt 0:00:29]} Kc5 {[%emt 0:00:19]} 43. Ba4 {[%emt 0:00:47]} Kb4 {[%emt 0:00:34]} 44. Bd7 {[%emt 0:00:27]} Bb2 {[%emt 0:01:01]} 45. c5 {[%emt 0:00:13]} Rxa2 {[%emt 0:00:37]} 46. c6 {[%emt 0:00:10]} Kb3 {[%emt 0:00:17]} 47. c7 {[%emt 0:00:15]} Kxc2 {[%emt 0:00:22]} 48. Be6 {[%emt 0:00:31]} Ra1 {[%emt 0:00:47]} 49. c8=Q+ {[%emt 0:00:08]} Bc3 {[%emt 0:00:14]} 50. Qc4 {[%emt 0:00:22]} Re1+ {[%emt 0:00:50]} 51. Kf2 {[%emt 0:00:15]} Rxe6 {[%emt 0:00:21]} 52. Qa2+ {[%emt 0:00:50]} Bb2 {[%emt 0:00:33]} 53. Qxe6 {[%emt 0:00:09]} Kb1 {[%emt 0:00:17]} 54. Qe4+ {[%emt 0:00:21]} Kc1 {[%emt 0:00:33]} 55. Qc4+ {[%emt 0:01:15]} Kb1 {[%emt 0:00:07]} 56. Qd3+ {[%emt 0:00:07]} Kc1 {[%emt 0:00:43]} 57. Ke2 {[%emt 0:00:09]} a2 {[%emt 0:00:19]} 58. Qd1# {[%emt 0:00:05]} 1-0

[Event "10th Iberoamericano-ch 2024"]
[Site "Linares"]
[Date "2024.09.30"]
[Round "8.29"]
[White "Iglesias Ferreira, Andres"]
[Black "Vitier Vazquez, Cristian"]
[Result "1-0"]
[ECO "B03"]
[WhiteElo "2285"]
[BlackElo "2344"]
[Annotator "RC"]
[PlyCount "77"]
[EventDate "2024.09.25"]
[EventType "swiss"]
[EventCountry "ESP"]
[SourceTitle "playchess.com"]
[Source "ChessBase"]
[SourceQuality "1"]
[TimeControl "5400+30"]

1. e4 {[%emt 0:00:09]} Nf6 {[%emt 0:02:55]} 2. e5 {[%emt 0:00:15]} Nd5 {[%emt 0:00:07]} 3. c4 {[%emt 0:00:12]} Nb6 {[%emt 0:00:09]} 4. d4 {[%emt 0:00:11]} d6 {[%emt 0:00:08]} 5. exd6 {[%emt 0:00:22]} cxd6 {[%emt 0:00:26]} 6. Nc3 {[%emt 0:00:12]} g6 {[%emt 0:00:09]} 7. h3 {[%emt 0:00:31]} Bg7 {[%emt 0:00:10]} 8. Nf3 {[%emt 0:00:09]} O-O {[%emt 0:00:22]} 9. Be2 {[%emt 0:00:14]} Nc6 {[%emt 0:00:24]} 10. O-O {[%emt 0:00:17]} Bf5 {[%emt 0:00:12]} 11. d5 {[%emt 0:01:12]} Na5 {[%emt 0:00:27]} 12. Nd4 {[%emt 0:00:46]} Naxc4 {[%emt 0:01:19]} 13. a4 {[%emt 0:01:57]} Na5 {[%emt 0:00:45]} 14. Nxf5 {[%emt 0:00:20]} gxf5 {[%emt 0:00:01]} 15. Re1 {[%emt 0:06:55]} e6 {[%emt 0:08:22]} 16. Bd3 {[%emt 0:03:07]} Qf6 {[%emt 0:05:21]} 17. Re3 {[%emt 0:02:45]} Kh8 {[%emt 0:07:46]} 18. Rg3 {[%emt 0:01:22]} Nbc4 {[%emt 0:19:33]} 19. Rb1 {[%emt 0:11:53]} Rac8 {[%emt 0:15:19]} 20. Ne2 {[%emt 0:05:45]} Bh6 {[%emt 0:16:25]} 21. Nf4 {[%emt 0:14:05]} Qh4 {[%emt 0:05:47]} 22. Ne2 {[%emt 0:18:25]} Bxc1 {[%emt 0:02:48]} 23. Rxc1 {[%emt 0:00:27]} Nxb2 {[%emt 0:03:48]} 24. Rxc8 {[%emt 0:02:31]} Rxc8 {[%emt 0:00:01]} 25. Qd2 {[%emt 0:00:44]} Nxd3 {[%emt 0:00:54]} 26. Rxd3 {[%emt 0:00:20]} Nc4 {[%emt 0:01:41]} 27. Qb4 {[%emt 0:04:04]} Qe4 {[%emt 0:03:13]} 28. Qxb7 {[%emt 0:01:11]} Rg8 {[%emt 0:00:15]} 29. Rg3 {[%emt 0:00:11]} Ne5 {[%emt 0:02:50]} 30. Qe7 {[%emt 0:01:50]} Rxg3 {[%emt 0:02:13]} 31. Nxg3 {[%emt 0:04:36]} Qe1+ {[%emt 0:00:04]} 32. Nf1 {[%emt 0:00:06]} h6 {[%emt 0:01:40]} 33. dxe6 {[%emt 0:01:54]} fxe6 {[%emt 0:00:07]} 34. Qxd6 {[%emt 0:00:25]} a5 {[%emt 0:00:18]} 35. Qf8+ {[%emt 0:11:26]} Kh7 {[%emt 0:00:13]} 36. Qe7+ {[%emt 0:00:05]} Kh8 {[%emt 0:00:13]} 37. f4 {[%emt 0:00:26]} Ng6 {[%emt 0:02:03]} 38. Qf6+ {[%emt 0:00:09]} Kh7 {[%emt 0:00:14]} 39. Qf7+ {[%emt 0:00:05]} 1-0

[Event "10th Iberoamericano-ch 2024"]
[Site "Linares"]
[Date "2024.09.30"]
[Round "8.30"]
[White "Teran Alvarez, Ismael"]
[Black "Atienza Alvarez, Javier"]
[Result "1-0"]
[ECO "C11"]
[WhiteElo "2329"]
[BlackElo "2119"]
[Annotator "RC"]
[PlyCount "59"]
[EventDate "2024.09.25"]
[EventType "swiss"]
[EventCountry "ESP"]
[SourceTitle "playchess.com"]
[Source "ChessBase"]
[SourceQuality "1"]
[TimeControl "5400+30"]

1. e4 {[%emt 0:00:12]} e6 {[%emt 0:05:18]} 2. d4 {[%emt 0:00:18]} d5 {[%emt 0:00:05]} 3. Nc3 {[%emt 0:00:40]} Nf6 {[%emt 0:00:06]} 4. e5 {[%emt 0:00:15]} Nfd7 {[%emt 0:00:05]} 5. f4 {[%emt 0:00:15]} c5 {[%emt 0:00:03]} 6. Nf3 {[%emt 0:00:10]} Nc6 {[%emt 0:00:21]} 7. Be3 {[%emt 0:00:18]} a6 {[%emt 0:00:07]} 8. a3 {[%emt 0:02:18]} b5 {[%emt 0:03:50]} 9. Bd3 {[%emt 0:02:36]} Qb6 {[%emt 0:15:00]} 10. O-O {[%emt 0:03:25]} Bb7 {[%emt 0:03:58]} 11. Bf2 {[%emt 0:13:49]} h6 {[%emt 0:07:28]} 12. Qd2 {[%emt 0:09:51]} Be7 {[%emt 0:21:16]} 13. dxc5 {[%emt 0:16:02]} Bxc5 {[%emt 0:00:08]} 14. b4 {[%emt 0:00:42]} Bxf2+ {[%emt 0:00:12]} 15. Rxf2 {[%emt 0:02:17]} O-O {[%emt 0:05:48]} 16. Re1 {[%emt 0:03:44]} f6 {[%emt 0:01:44]} 17. exf6 {[%emt 0:01:16]} Rxf6 {[%emt 0:11:45]} 18. f5 {[%emt 0:02:50]} d4 {[%emt 0:04:23]} 19. Ne4 {[%emt 0:08:34]} Rxf5 {[%emt 0:00:27]} 20. Nc5 {[%emt 0:15:14]} Nxc5 {[%emt 0:10:39]} 21. Bxf5 {[%emt 0:00:23]} exf5 {[%emt 0:00:01]} 22. bxc5 {[%emt 0:00:44]} Qxc5 {[%emt 0:00:01]} 23. Qe2 {[%emt 0:02:07]} Rf8 {[%emt 0:01:01]} 24. Qe6+ {[%emt 0:01:01]} Kh7 {[%emt 0:00:22]} 25. Nh4 {[%emt 0:06:33]} Rf6 {[%emt 0:08:00]} 26. Qd7 {[%emt 0:00:11]} Qc3 {[%emt 0:00:43]} 27. Ref1 {[%emt 0:01:31]} Na5 {[%emt 0:00:33]} 28. Rxf5 {[%emt 0:02:27]} Qe3+ {[%emt 0:00:18]} 29. Kh1 {[%emt 0:00:07]} Bc8 {[%emt 0:00:30]} 30. Qxc8 {[%emt 0:00:25]} 1-0

[Event "10th Iberoamericano-ch 2024"]
[Site "Linares"]
[Date "2024.09.30"]
[Round "8.31"]
[White "Ruiz Buendia, Miguel"]
[Black "Domingo Nunez, Alejandro"]
[Result "1/2-1/2"]
[ECO "C92"]
[WhiteElo "2269"]
[BlackElo "2328"]
[Annotator "RC"]
[PlyCount "187"]
[EventDate "2024.09.25"]
[EventType "swiss"]
[EventCountry "ESP"]
[SourceTitle "playchess.com"]
[Source "ChessBase"]
[SourceQuality "1"]
[TimeControl "5400+30"]

1. e4 {[%emt 0:00:02]} e5 {[%emt 0:01:26]} 2. Nf3 {[%emt 0:00:31]} Nc6 {[%emt 0:00:06]} 3. Bb5 {[%emt 0:00:12]} a6 {[%emt 0:00:05]} 4. Ba4 {[%emt 0:00:13]} Nf6 {[%emt 0:00:07]} 5. O-O {[%emt 0:00:09]} Be7 {[%emt 0:01:41]} 6. Re1 {[%emt 0:00:16]} b5 {[%emt 0:00:13]} 7. Bb3 {[%emt 0:00:04]} d6 {[%emt 0:00:08]} 8. c3 {[%emt 0:00:34]} O-O {[%emt 0:00:15]} 9. h3 {[%emt 0:00:18]} Nd7 {[%emt 0:02:09]} 10. d4 {[%emt 0:01:09]} Nb6 {[%emt 0:00:22]} 11. Nbd2 {[%emt 0:05:07]} Bf6 {[%emt 0:07:19]} 12. d5 {[%emt 0:01:54]} Ne7 {[%emt 0:00:32]} 13. c4 {[%emt 0:02:48]} Nd7 {[%emt 0:13:15]} 14. Bc2 {[%emt 0:07:38]} c5 {[%emt 0:02:12]} 15. dxc6 {[%emt 0:06:10]} Nxc6 {[%emt 0:00:06]} 16. cxb5 {[%emt 0:18:44]} axb5 {[%emt 0:00:07]} 17. Nf1 {[%emt 0:01:06]} Nc5 {[%emt 0:19:32]} 18. Ne3 {[%emt 0:00:57]} Nb4 {[%emt 0:00:54]} 19. Nd5 {[%emt 0:07:53]} Nxd5 {[%emt 0:04:58]} 20. exd5 {[%emt 0:01:01]} Bb7 {[%emt 0:00:43]} 21. Nh2 {[%emt 0:05:50]} g6 {[%emt 0:06:57]} 22. Be3 {[%emt 0:07:21]} Bg7 {[%emt 0:06:52]} 23. Qd2 {[%emt 0:01:36]} Qd7 {[%emt 0:06:10]} 24. b4 {[%emt 0:06:34]} Na4 {[%emt 0:01:01]} 25. Bb3 {[%emt 0:00:24]} f5 {[%emt 0:00:54]} 26. f4 {[%emt 0:00:43]} e4 {[%emt 0:04:17]} 27. Bd4 {[%emt 0:00:45]} Bxd4+ {[%emt 0:01:42]} 28. Qxd4 {[%emt 0:00:05]} Qg7 {[%emt 0:00:07]} 29. Qxg7+ {[%emt 0:03:25]} Kxg7 {[%emt 0:00:02]} 30. Rac1 {[%emt 0:00:56]} Rfc8 {[%emt 0:00:28]} 31. Rxc8 {[%emt 0:00:50]} Rxc8 {[%emt 0:01:27]} 32. Nf3 {[%emt 0:00:09]} Nc3 {[%emt 0:02:55]} 33. Nd4 {[%emt 0:00:15]} Bxd5 {[%emt 0:04:49]} 34. Rc1 {[%emt 0:04:50]} Bxb3 {[%emt 0:00:36]} 35. axb3 {[%emt 0:00:04]} Kf6 {[%emt 0:00:38]} 36. Kf2 {[%emt 0:00:05]} Rc7 {[%emt 0:00:09]} 37. Ne2 {[%emt 0:01:00]} Nd5 {[%emt 0:00:10]} 38. Rd1 {[%emt 0:00:03]} Nxb4 {[%emt 0:04:01]} 39. Rxd6+ {[%emt 0:00:06]} Ke7 {[%emt 0:00:11]} 40. Rb6 {[%emt 0:00:47]} Nd5 {[%emt 0:04:26]} 41. Rxb5 {[%emt 0:00:55]} Kd6 {[%emt 0:00:04]} 42. Rb8 {[%emt 0:02:03]} Kc5 {[%emt 0:03:59]} 43. g4 {[%emt 0:00:57]} Rf7 {[%emt 0:01:12]} 44. Rc8+ {[%emt 0:01:28]} Kb4 {[%emt 0:00:42]} 45. Rb8+ {[%emt 0:00:44]} Ka3 {[%emt 0:00:07]} 46. Rb5 {[%emt 0:00:52]} Rd7 {[%emt 0:01:05]} 47. gxf5 {[%emt 0:00:46]} gxf5 {[%emt 0:00:01]} 48. h4 {[%emt 0:02:01]} Kb2 {[%emt 0:00:26]} 49. Ng3 {[%emt 0:01:49]} Kc2 {[%emt 0:01:49]} 50. Nxf5 {[%emt 0:01:47]} Kd2 {[%emt 0:00:02]} 51. Ng3 {[%emt 0:00:53]} Kd3 {[%emt 0:01:59]} 52. f5 {[%emt 0:02:05]} Nf6 {[%emt 0:00:01]} 53. Rb6 {[%emt 0:00:47]} Ng4+ {[%emt 0:00:06]} 54. Kg2 {[%emt 0:00:18]} Ke3 {[%emt 0:00:18]} 55. Nf1+ {[%emt 0:02:42]} Kf4 {[%emt 0:00:18]} 56. f6 {[%emt 0:02:46]} Rc7 {[%emt 0:01:42]} 57. Rd6 {[%emt 0:01:04]} Ke5 {[%emt 0:00:26]} 58. Rd2 {[%emt 0:01:07]} Nxf6 {[%emt 0:00:25]} 59. Ne3 {[%emt 0:00:09]} Kf4 {[%emt 0:00:34]} 60. Nc4 {[%emt 0:00:49]} Ng4 {[%emt 0:00:25]} 61. Rd4 {[%emt 0:01:49]} Rg7 {[%emt 0:00:34]} 62. Rd8 {[%emt 0:00:33]} Ne3+ {[%emt 0:00:26]} 63. Kf2 {[%emt 0:00:04]} Rg2+ {[%emt 0:00:23]} 64. Ke1 {[%emt 0:00:03]} Nxc4 {[%emt 0:00:38]} 65. bxc4 {[%emt 0:00:04]} Ke3 {[%emt 0:00:02]} 66. Kf1 {[%emt 0:00:31]} Rh2 {[%emt 0:01:10]} 67. c5 {[%emt 0:00:24]} Rxh4 {[%emt 0:00:16]} 68. Rh8 {[%emt 0:01:17]} Rh1+ {[%emt 0:00:33]} 69. Kg2 {[%emt 0:00:05]} Rh6 {[%emt 0:00:43]} 70. Kf1 {[%emt 0:01:12]} Rh1+ {[%emt 0:00:23]} 71. Kg2 {[%emt 0:00:03]} Rc1 {[%emt 0:00:04]} 72. Rxh7 {[%emt 0:00:15]} Rxc5 {[%emt 0:00:05]} 73. Ra7 {[%emt 0:00:19]} Rc2+ {[%emt 0:00:56]} 74. Kg3 {[%emt 0:00:33]} Ke2 {[%emt 0:00:27]} 75. Ra1 {[%emt 0:00:38]} e3 {[%emt 0:00:19]} 76. Kg2 {[%emt 0:00:08]} Rd2 {[%emt 0:00:51]} 77. Kg3 {[%emt 0:00:11]} Rd8 {[%emt 0:00:50]} 78. Ra2+ {[%emt 0:00:26]} Rd2 {[%emt 0:00:23]} 79. Ra1 {[%emt 0:00:04]} Rc2 {[%emt 0:00:40]} 80. Kg2 {[%emt 0:00:14]} Kd3+ {[%emt 0:00:32]} 81. Kf3 {[%emt 0:01:12]} Rf2+ {[%emt 0:00:05]} 82. Kg3 {[%emt 0:00:07]} Rc2 {[%emt 0:00:51]} 83. Kf3 {[%emt 0:00:15]} Kd2 {[%emt 0:00:29]} 84. Kg2 {[%emt 0:00:45]} Rc1 {[%emt 0:00:34]} 85. Ra2+ {[%emt 0:00:17]} Rc2 {[%emt 0:00:26]} 86. Ra1 {[%emt 0:00:08]} Rb2 {[%emt 0:00:04]} 87. Kf3 {[%emt 0:00:40]} e2 {[%emt 0:01:00]} 88. Kf2 {[%emt 0:00:09]} Rc2 {[%emt 0:00:14]} 89. Re1 {[%emt 0:01:05]} Kd3 {[%emt 0:00:04]} 90. Ra1 {[%emt 0:00:14]} Rb2 {[%emt 0:00:33]} 91. Ke1 {[%emt 0:01:09]} Rb3 {[%emt 0:00:04]} 92. Rc1 {[%emt 0:01:10]} Ra3 {[%emt 0:00:04]} 93. Rb1 {[%emt 0:00:42]} Ke3 {[%emt 0:00:37]} 94. Rb3+ {[%emt 0:00:16]} 1/2-1/2